[Event "Early-Titled-Tuesday-Blitz-November-28-2023"]
[Site "Chess.com"]
[Date "2023.11.28"]
[Round "10"]
[White "sokidze"]
[Black "snowlord"]
[Result "0-1"]
[WhiteElo "2760"]
[BlackElo "2881"]
[TimeControl "180+1"]
[EndTime "10:01:35 PST"]
[Termination "snowlord won by resignation"]

1. e4 {[%clk 0:03:00.9]} 1... e6 {[%clk 0:02:59]} 2. d4 {[%clk 0:03:00.1]} 2...
d5 {[%clk 0:02:59.6]} 3. Nd2 {[%clk 0:03:00.6]} 3... a6 {[%clk 0:02:59.2]} 4.
Bd3 {[%clk 0:02:58.8]} 4... c5 {[%clk 0:02:59.6]} 5. dxc5 {[%clk 0:02:57.6]}
5... Bxc5 {[%clk 0:03:00.5]} 6. Ngf3 {[%clk 0:02:57.6]} 6... Nc6 {[%clk
0:02:57.9]} 7. exd5 {[%clk 0:02:56.2]} 7... exd5 {[%clk 0:02:57.7]} 8. O-O
{[%clk 0:02:54.7]} 8... Nf6 {[%clk 0:02:58]} 9. Qe2+ {[%clk 0:02:45.2]} 9... Be6
{[%clk 0:02:56.6]} 10. Nb3 {[%clk 0:02:44.6]} 10... Ba7 {[%clk 0:02:45.7]} 11.
Be3 {[%clk 0:02:24.5]} 11... d4 {[%clk 0:02:45.3]} 12. Bg5 {[%clk 0:02:24]}
12... O-O {[%clk 0:02:38.1]} 13. Nfd2 {[%clk 0:02:19.3]} 13... h6 {[%clk
0:02:28.4]} 14. Bh4 {[%clk 0:02:13.3]} 14... g5 {[%clk 0:02:00.5]} 15. Bg3
{[%clk 0:02:11.1]} 15... Bg4 {[%clk 0:01:59.2]} 16. Qe1 {[%clk 0:01:44.1]} 16...
Re8 {[%clk 0:01:59.8]} 17. Qc1 {[%clk 0:01:43.9]} 17... Rc8 {[%clk 0:01:37.6]}
18. h3 {[%clk 0:01:23.1]} 18... Nb4 {[%clk 0:01:26.3]} 19. hxg4 {[%clk
0:00:33.7]} 19... Nxd3 {[%clk 0:01:26.4]} 20. Qd1 {[%clk 0:00:27.2]} 20... Nxb2
{[%clk 0:01:23.3]} 21. Qf3 {[%clk 0:00:27.8]} 21... Rxc2 {[%clk 0:00:40.1]} 22.
Qxb7 {[%clk 0:00:27.3]} 22... Qd7 {[%clk 0:00:36.2]} 23. Qxa6 {[%clk 0:00:22.2]}
23... Re6 {[%clk 0:00:30.1]} 24. Qa5 {[%clk 0:00:15.7]} 24... Nd5 {[%clk
0:00:17.3]} 25. Rac1 {[%clk 0:00:13.1]} 25... Rc3 {[%clk 0:00:16.2]} 26. Nc4
{[%clk 0:00:09.5]} 26... Nxc4 {[%clk 0:00:16.2]} 0-1

[Event "Early-Titled-Tuesday-Blitz-November-28-2023"]
[Site "Chess.com"]
[Date "2023.11.28"]
[Round "10"]
[White "stratacticos"]
[Black "GoValya"]
[Result "1-0"]
[WhiteElo "1772"]
[BlackElo "2194"]
[TimeControl "180+1"]
[EndTime "10:01:35 PST"]
[Termination "stratacticos won by resignation"]

1. e4 {[%clk 0:02:52.2]} 1... g6 {[%clk 0:02:55.9]} 2. d4 {[%clk 0:02:51.2]}
2... Bg7 {[%clk 0:02:55.6]} 3. c3 {[%clk 0:02:49.7]} 3... c5 {[%clk 0:02:55.4]}
4. dxc5 {[%clk 0:02:47.6]} 4... Qc7 {[%clk 0:02:52.5]} 5. Be3 {[%clk 0:02:35.8]}
5... Nf6 {[%clk 0:02:51.5]} 6. Nd2 {[%clk 0:02:34.5]} 6... O-O {[%clk
0:02:50.6]} 7. Be2 {[%clk 0:02:31.2]} 7... Nc6 {[%clk 0:02:36.2]} 8. Ngf3 {[%clk
0:02:29.8]} 8... Ng4 {[%clk 0:02:34]} 9. Bg5 {[%clk 0:02:21.6]} 9... Re8 {[%clk
0:02:05]} 10. h3 {[%clk 0:02:18.9]} 10... Nge5 {[%clk 0:01:58.6]} 11. O-O {[%clk
0:02:10.8]} 11... d6 {[%clk 0:01:49.6]} 12. cxd6 {[%clk 0:02:09.7]} 12... Qxd6
{[%clk 0:01:49.6]} 13. Nxe5 {[%clk 0:02:06.7]} 13... Nxe5 {[%clk 0:01:39.8]} 14.
Nf3 {[%clk 0:02:04.8]} 14... Qb6 {[%clk 0:01:31.3]} 15. Nxe5 {[%clk 0:01:54.7]}
15... Bxe5 {[%clk 0:01:29.1]} 16. Qc2 {[%clk 0:01:50.8]} 16... Be6 {[%clk
0:01:22.1]} 17. Be3 {[%clk 0:01:49.5]} 17... Qc7 {[%clk 0:01:20.9]} 18. f4
{[%clk 0:01:48]} 18... Bd6 {[%clk 0:01:16.5]} 19. f5 {[%clk 0:01:41.8]} 19...
Bc4 {[%clk 0:01:09.7]} 20. Bxc4 {[%clk 0:01:33.7]} 20... Qxc4 {[%clk 0:01:08.9]}
21. Bd4 {[%clk 0:01:29.3]} 21... Rac8 {[%clk 0:01:01.7]} 22. Qd2 {[%clk
0:01:28.4]} 22... Bc5 {[%clk 0:00:58.7]} 23. fxg6 {[%clk 0:01:21]} 23... hxg6
{[%clk 0:00:49.2]} 24. Bxc5 {[%clk 0:01:12.4]} 24... Qxc5+ {[%clk 0:00:36.9]}
25. Qf2 {[%clk 0:01:10.9]} 25... Qc4 {[%clk 0:00:33.1]} 26. b3 {[%clk
0:01:06.3]} 26... Qe6 {[%clk 0:00:31.8]} 27. c4 {[%clk 0:01:04.4]} 27... Rf8
{[%clk 0:00:24.4]} 28. Qxa7 {[%clk 0:01:00.2]} 28... Qxe4 {[%clk 0:00:19.6]} 29.
Rae1 {[%clk 0:00:58.1]} 29... Qc2 {[%clk 0:00:19]} 30. Rxe7 {[%clk 0:00:52.2]}
30... Rcd8 {[%clk 0:00:19.1]} 31. Qxb7 {[%clk 0:00:51.5]} 31... Rd2 {[%clk
0:00:17.1]} 32. Rexf7 {[%clk 0:00:46.8]} 32... Rxg2+ {[%clk 0:00:12.1]} 33. Qxg2
{[%clk 0:00:43]} 33... Qxg2+ {[%clk 0:00:11.4]} 34. Kxg2 {[%clk 0:00:43]} 34...
Rxf7 {[%clk 0:00:12.1]} 35. Rxf7 {[%clk 0:00:42.9]} 35... Kxf7 {[%clk
0:00:12.3]} 36. Kf3 {[%clk 0:00:42.9]} 36... Ke6 {[%clk 0:00:11.6]} 37. Ke4
{[%clk 0:00:42.9]} 37... Kd6 {[%clk 0:00:12.5]} 38. b4 {[%clk 0:00:42.7]} 38...
Kc6 {[%clk 0:00:12.5]} 39. h4 {[%clk 0:00:42]} 1-0

[Event "Early-Titled-Tuesday-Blitz-November-28-2023"]
[Site "Chess.com"]
[Date "2023.11.28"]
[Round "10"]
[White "Mouse-Sleep"]
[Black "emeli_chess"]
[Result "1-0"]
[WhiteElo "2549"]
[BlackElo "2372"]
[TimeControl "180+1"]
[EndTime "10:01:40 PST"]
[Termination "Mouse-Sleep won on time"]

1. Nf3 {[%clk 0:03:00.9]} 1... f5 {[%clk 0:02:59.2]} 2. g3 {[%clk 0:03:00.6]}
2... Nf6 {[%clk 0:02:59]} 3. Bg2 {[%clk 0:03:01]} 3... g6 {[%clk 0:02:59.3]} 4.
O-O {[%clk 0:03:00.9]} 4... Bg7 {[%clk 0:02:59.8]} 5. d4 {[%clk 0:03:00.4]} 5...
O-O {[%clk 0:02:59.7]} 6. Nbd2 {[%clk 0:03:00.5]} 6... d6 {[%clk 0:02:59.6]} 7.
Re1 {[%clk 0:03:00.8]} 7... c6 {[%clk 0:02:53.4]} 8. e4 {[%clk 0:03:00.9]} 8...
fxe4 {[%clk 0:02:53.4]} 9. Nxe4 {[%clk 0:03:01.8]} 9... Nxe4 {[%clk 0:02:53.8]}
10. Rxe4 {[%clk 0:03:02.7]} 10... Bf5 {[%clk 0:02:53.7]} 11. Re1 {[%clk
0:03:03.1]} 11... Nd7 {[%clk 0:02:50.5]} 12. c3 {[%clk 0:03:00]} 12... d5 {[%clk
0:02:38.5]} 13. Ng5 {[%clk 0:02:54.2]} 13... e5 {[%clk 0:02:17.5]} 14. dxe5
{[%clk 0:02:36.6]} 14... Nxe5 {[%clk 0:02:13.1]} 15. Be3 {[%clk 0:02:12.6]}
15... h6 {[%clk 0:01:53.6]} 16. Nh3 {[%clk 0:02:03.4]} 16... g5 {[%clk
0:01:47.1]} 17. f4 {[%clk 0:01:57.6]} 17... Nc4 {[%clk 0:01:39.9]} 18. Bd4
{[%clk 0:01:53.3]} 18... Bxd4+ {[%clk 0:00:49.8]} 19. Qxd4 {[%clk 0:01:48.9]}
19... Qb6 {[%clk 0:00:33.5]} 20. Qxb6 {[%clk 0:01:24.8]} 20... axb6 {[%clk
0:00:31.8]} 21. b3 {[%clk 0:01:25.2]} 21... Nd6 {[%clk 0:00:28.7]} 22. fxg5
{[%clk 0:01:24.2]} 22... Bxh3 {[%clk 0:00:26.4]} 23. Bxh3 {[%clk 0:01:25.1]}
23... hxg5 {[%clk 0:00:26.8]} 24. Re7 {[%clk 0:01:25.1]} 24... Rae8 {[%clk
0:00:25]} 25. Rae1 {[%clk 0:01:24.4]} 25... Ne4 {[%clk 0:00:21.7]} 26. Rxe8
{[%clk 0:01:18.2]} 26... Rxe8 {[%clk 0:00:21.3]} 27. c4 {[%clk 0:01:17.4]} 27...
Kf7 {[%clk 0:00:15.2]} 28. cxd5 {[%clk 0:01:09.8]} 28... cxd5 {[%clk 0:00:15.2]}
29. Rc1 {[%clk 0:01:10.3]} 29... Kf6 {[%clk 0:00:12.5]} 30. Bg2 {[%clk
0:01:06.6]} 30... Ke5 {[%clk 0:00:11.8]} 31. Rc7 {[%clk 0:01:03.2]} 31... d4
{[%clk 0:00:09.8]} 32. Rd7 {[%clk 0:00:56.2]} 32... Nd6 {[%clk 0:00:08.1]} 33.
Bf1 {[%clk 0:00:55.5]} 33... Kd5 {[%clk 0:00:05.1]} 34. Kf2 {[%clk 0:00:46]}
34... Kc6 {[%clk 0:00:02.8]} 35. Rg7 {[%clk 0:00:44.9]} 35... Ne4+ {[%clk
0:00:01.6]} 36. Kg2 {[%clk 0:00:41.6]} 36... Nc3 {[%clk 0:00:01.7]} 37. Rxg5
{[%clk 0:00:37.8]} 37... Nxa2 {[%clk 0:00:01.5]} 38. Bb5+ {[%clk 0:00:38]} 1-0

[Event "Early-Titled-Tuesday-Blitz-November-28-2023"]
[Site "Chess.com"]
[Date "2023.11.28"]
[Round "10"]
[White "jens1102"]
[Black "fighter2jz"]
[Result "1-0"]
[WhiteElo "2646"]
[BlackElo "2779"]
[TimeControl "180+1"]
[EndTime "10:01:45 PST"]
[Termination "jens1102 won on time"]

1. c4 {[%clk 0:03:00.9]} 1... e5 {[%clk 0:02:58.6]} 2. g3 {[%clk 0:02:59.5]}
2... Bc5 {[%clk 0:02:58.8]} 3. Bg2 {[%clk 0:02:59.5]} 3... c6 {[%clk 0:02:56.3]}
4. Nc3 {[%clk 0:02:59.7]} 4... Nf6 {[%clk 0:02:55.2]} 5. Nf3 {[%clk 0:02:59.9]}
5... e4 {[%clk 0:02:54]} 6. Ng5 {[%clk 0:02:59.7]} 6... d5 {[%clk 0:02:54.2]} 7.
cxd5 {[%clk 0:02:58.9]} 7... cxd5 {[%clk 0:02:55.1]} 8. O-O {[%clk 0:02:59.1]}
8... h6 {[%clk 0:02:52.1]} 9. Nh3 {[%clk 0:02:56.5]} 9... h5 {[%clk 0:02:52.7]}
10. d4 {[%clk 0:02:55.3]} 10... h4 {[%clk 0:02:39.4]} 11. dxc5 {[%clk
0:02:34.9]} 11... Bxh3 {[%clk 0:02:14.3]} 12. Bxh3 {[%clk 0:02:33.3]} 12... hxg3
{[%clk 0:02:15]} 13. Bg2 {[%clk 0:02:21.2]} 13... gxf2+ {[%clk 0:01:41.1]} 14.
Rxf2 {[%clk 0:02:14.1]} 14... Ng4 {[%clk 0:01:41.6]} 15. Rf4 {[%clk 0:02:01.1]}
15... Nf6 {[%clk 0:01:10]} 16. Rf5 {[%clk 0:01:40.7]} 16... Qc7 {[%clk
0:01:08.3]} 17. Bf4 {[%clk 0:01:33.8]} 17... Qxc5+ {[%clk 0:01:05.4]} 18. e3
{[%clk 0:01:34.4]} 18... Nc6 {[%clk 0:00:34.5]} 19. Nxe4 {[%clk 0:01:08.2]}
19... Nxe4 {[%clk 0:00:31.7]} 20. Bxe4 {[%clk 0:01:08.9]} 20... Ne7 {[%clk
0:00:29.8]} 21. Rc1 {[%clk 0:00:49.4]} 21... Qb6 {[%clk 0:00:20.4]} 22. Qa4+
{[%clk 0:00:19.6]} 22... Kf8 {[%clk 0:00:20.1]} 23. Re5 {[%clk 0:00:12.7]} 23...
dxe4 {[%clk 0:00:17.3]} 24. Qd7 {[%clk 0:00:13.4]} 24... Ng6 {[%clk 0:00:17]}
25. Rf5 {[%clk 0:00:10.4]} 25... f6 {[%clk 0:00:08.2]} 26. Rc7 {[%clk
0:00:09.8]} 1-0

[Event "Early-Titled-Tuesday-Blitz-November-28-2023"]
[Site "Chess.com"]
[Date "2023.11.28"]
[Round "10"]
[White "infantaria08"]
[Black "Politov_Pavel"]
[Result "0-1"]
[WhiteElo "2197"]
[BlackElo "2133"]
[TimeControl "180+1"]
[EndTime "10:01:47 PST"]
[Termination "Politov_Pavel won by resignation"]

1. d4 {[%clk 0:03:00.9]} 1... d5 {[%clk 0:02:57.3]} 2. Bf4 {[%clk 0:03:01.3]}
2... Nf6 {[%clk 0:02:55.9]} 3. e3 {[%clk 0:03:01.6]} 3... g6 {[%clk 0:02:55.8]}
4. Nc3 {[%clk 0:03:01.2]} 4... Bg7 {[%clk 0:02:56.3]} 5. h4 {[%clk 0:03:01.9]}
5... a6 {[%clk 0:02:41.8]} 6. Nf3 {[%clk 0:02:53.1]} 6... Bg4 {[%clk 0:02:34.3]}
7. Be2 {[%clk 0:02:50]} 7... h5 {[%clk 0:02:21.4]} 8. Ne5 {[%clk 0:02:49.5]}
8... Bxe2 {[%clk 0:02:18.1]} 9. Qxe2 {[%clk 0:02:49.6]} 9... e6 {[%clk
0:02:11.6]} 10. f3 {[%clk 0:02:48.8]} 10... Nfd7 {[%clk 0:02:08.3]} 11. O-O-O
{[%clk 0:02:39.4]} 11... c5 {[%clk 0:02:01.5]} 12. g4 {[%clk 0:02:12.1]} 12...
hxg4 {[%clk 0:01:54.1]} 13. fxg4 {[%clk 0:02:06.9]} 13... Nxe5 {[%clk
0:01:52.8]} 14. dxe5 {[%clk 0:02:04.8]} 14... Rxh4 {[%clk 0:01:38]} 15. Rxh4
{[%clk 0:01:48.1]} 15... Qxh4 {[%clk 0:01:34.9]} 16. Qg2 {[%clk 0:01:49]} 16...
Nc6 {[%clk 0:01:28.1]} 17. Rh1 {[%clk 0:01:46.9]} 17... Qe7 {[%clk 0:01:19.2]}
18. Rh7 {[%clk 0:01:47]} 18... Qf8 {[%clk 0:01:18.2]} 19. Qh2 {[%clk 0:00:56.9]}
19... O-O-O {[%clk 0:01:13.5]} 20. Na4 {[%clk 0:00:44.3]} 20... Kc7 {[%clk
0:00:41.1]} 21. Nc3 {[%clk 0:00:36.9]} 21... Rd7 {[%clk 0:00:23.8]} 22. Nd1
{[%clk 0:00:36.6]} 22... d4 {[%clk 0:00:22.8]} 23. Nf2 {[%clk 0:00:19.4]} 23...
dxe3 {[%clk 0:00:20.2]} 24. Bxe3 {[%clk 0:00:19.2]} 24... Bxe5 {[%clk
0:00:20.1]} 25. Bf4 {[%clk 0:00:18.3]} 25... Bxf4+ {[%clk 0:00:19]} 26. Qxf4+
{[%clk 0:00:19.2]} 26... e5 {[%clk 0:00:18.9]} 27. Qf6 {[%clk 0:00:15.7]} 27...
Qg8 {[%clk 0:00:09.3]} 28. Ne4 {[%clk 0:00:15.1]} 28... Qxh7 {[%clk 0:00:08.1]}
29. Nxc5 {[%clk 0:00:13.5]} 29... Qh1+ {[%clk 0:00:07.7]} 0-1

[Event "Early-Titled-Tuesday-Blitz-November-28-2023"]
[Site "Chess.com"]
[Date "2023.11.28"]
[Round "10"]
[White "DvaHrasta"]
[Black "Aradhya2000"]
[Result "1/2-1/2"]
[WhiteElo "2527"]
[BlackElo "2708"]
[TimeControl "180+1"]
[EndTime "10:01:51 PST"]
[Termination "Game drawn by repetition"]

1. c4 {[%clk 0:03:00.9]} 1... Nf6 {[%clk 0:02:58.9]} 2. g3 {[%clk 0:03:01]} 2...
e6 {[%clk 0:02:59.1]} 3. Bg2 {[%clk 0:03:01.3]} 3... d5 {[%clk 0:02:59.8]} 4.
Nf3 {[%clk 0:03:01.3]} 4... Be7 {[%clk 0:02:55.8]} 5. O-O {[%clk 0:03:01.1]}
5... O-O {[%clk 0:02:56.4]} 6. d4 {[%clk 0:03:01.4]} 6... dxc4 {[%clk 0:02:56]}
7. Ne5 {[%clk 0:03:01.4]} 7... Nc6 {[%clk 0:02:45.7]} 8. Bxc6 {[%clk 0:03:01]}
8... bxc6 {[%clk 0:02:46]} 9. Nxc6 {[%clk 0:03:01.6]} 9... Qe8 {[%clk
0:02:46.5]} 10. Nxe7+ {[%clk 0:03:02.3]} 10... Qxe7 {[%clk 0:02:47.1]} 11. Na3
{[%clk 0:03:02.9]} 11... e5 {[%clk 0:02:43.1]} 12. dxe5 {[%clk 0:03:01.7]} 12...
Qxe5 {[%clk 0:02:42.2]} 13. Nxc4 {[%clk 0:03:01.7]} 13... Qe4 {[%clk 0:02:40.1]}
14. Qd3 {[%clk 0:02:53.6]} 14... Qc6 {[%clk 0:02:17.1]} 15. f3 {[%clk
0:02:44.4]} 15... Ba6 {[%clk 0:02:15.9]} 16. b3 {[%clk 0:02:40.9]} 16... Rad8
{[%clk 0:02:15.1]} 17. Qc2 {[%clk 0:02:33.7]} 17... Rfe8 {[%clk 0:02:14.3]} 18.
e4 {[%clk 0:02:26.4]} 18... Nd7 {[%clk 0:02:03.5]} 19. Be3 {[%clk 0:02:21.4]}
19... Ne5 {[%clk 0:02:02.8]} 20. Rac1 {[%clk 0:02:16.7]} 20... Bxc4 {[%clk
0:02:01.4]} 21. bxc4 {[%clk 0:02:15.6]} 21... Rd3 {[%clk 0:02:02.2]} 22. Qe2
{[%clk 0:01:54.7]} 22... Red8 {[%clk 0:02:01.4]} 23. Rfd1 {[%clk 0:01:47.4]}
23... Qd7 {[%clk 0:01:23.2]} 24. Rxd3 {[%clk 0:01:44.5]} 24... Qxd3 {[%clk
0:01:24.1]} 25. Qxd3 {[%clk 0:01:38.8]} 25... Rxd3 {[%clk 0:01:25]} 26. Kf2
{[%clk 0:01:31.2]} 26... Ra3 {[%clk 0:01:24.1]} 27. Rc2 {[%clk 0:01:30.8]} 27...
Nd3+ {[%clk 0:01:23.2]} 28. Ke2 {[%clk 0:01:26.7]} 28... Nb4 {[%clk 0:01:22.5]}
29. Rb2 {[%clk 0:01:26]} 29... a5 {[%clk 0:01:20.7]} 30. Bc5 {[%clk 0:01:21]}
30... f6 {[%clk 0:01:19.5]} 31. Bxb4 {[%clk 0:01:16.7]} 31... axb4 {[%clk
0:01:19.6]} 32. Rxb4 {[%clk 0:01:14.5]} 32... Rxa2+ {[%clk 0:01:20]} 33. Ke3
{[%clk 0:01:14.8]} 33... Ra3+ {[%clk 0:01:13.8]} 34. Kf4 {[%clk 0:01:06.2]}
34... Rc3 {[%clk 0:01:13.1]} 35. h4 {[%clk 0:01:03.4]} 35... Kf7 {[%clk
0:01:09.8]} 36. g4 {[%clk 0:00:59.8]} 36... c5 {[%clk 0:01:06.4]} 37. Ra4 {[%clk
0:00:53.2]} 37... h6 {[%clk 0:01:04.9]} 38. h5 {[%clk 0:00:49.1]} 38... Kg8
{[%clk 0:01:04.4]} 39. e5 {[%clk 0:00:44.3]} 39... fxe5+ {[%clk 0:01:03]} 40.
Ke4 {[%clk 0:00:44.4]} 40... Kh7 {[%clk 0:00:59.9]} 41. Kxe5 {[%clk 0:00:33.6]}
41... Rxf3 {[%clk 0:00:59.9]} 42. Kd5 {[%clk 0:00:33]} 42... Rf4 {[%clk
0:01:00]} 43. Kxc5 {[%clk 0:00:33.2]} 43... Rxg4 {[%clk 0:01:00.4]} 44. Kb5
{[%clk 0:00:32.1]} 44... Rg5+ {[%clk 0:00:59.1]} 45. c5 {[%clk 0:00:32.5]} 45...
Rxh5 {[%clk 0:00:59.8]} 46. Kb6 {[%clk 0:00:31]} 46... Rh2 {[%clk 0:00:45.6]}
47. Rc4 {[%clk 0:00:30.6]} 47... Rb2+ {[%clk 0:00:38.2]} 48. Ka7 {[%clk
0:00:29.9]} 48... Ra2+ {[%clk 0:00:38.2]} 49. Kb7 {[%clk 0:00:30.2]} 49... Rb2+
{[%clk 0:00:38.6]} 50. Ka7 {[%clk 0:00:28.3]} 50... Ra2+ {[%clk 0:00:38.9]} 51.
Kb7 {[%clk 0:00:26.7]} 51... Rb2+ {[%clk 0:00:39]} 52. Ka7 {[%clk 0:00:26.7]}
1/2-1/2

[Event "Early-Titled-Tuesday-Blitz-November-28-2023"]
[Site "Chess.com"]
[Date "2023.11.28"]
[Round "10"]
[White "CristianS27"]
[Black "KaydenTroffChess"]
[Result "0-1"]
[WhiteElo "2591"]
[BlackElo "2788"]
[TimeControl "180+1"]
[EndTime "10:01:56 PST"]
[Termination "KaydenTroffChess won by checkmate"]

1. e4 {[%clk 0:02:59.4]} 1... c5 {[%clk 0:02:59.7]} 2. Nf3 {[%clk 0:02:59.1]}
2... g6 {[%clk 0:03:00.1]} 3. d4 {[%clk 0:02:58.9]} 3... cxd4 {[%clk 0:03:01]}
4. Nxd4 {[%clk 0:02:59.7]} 4... Bg7 {[%clk 0:03:01.2]} 5. Nc3 {[%clk 0:03:00.3]}
5... Nc6 {[%clk 0:03:01.2]} 6. Be3 {[%clk 0:03:00.8]} 6... Nf6 {[%clk
0:03:00.8]} 7. Bc4 {[%clk 0:03:01.5]} 7... O-O {[%clk 0:03:00.7]} 8. Bb3 {[%clk
0:03:01.9]} 8... Re8 {[%clk 0:03:00.5]} 9. O-O {[%clk 0:03:01.1]} 9... d6 {[%clk
0:02:59.5]} 10. h3 {[%clk 0:03:01.4]} 10... a6 {[%clk 0:02:59.7]} 11. Re1 {[%clk
0:03:01.5]} 11... Na5 {[%clk 0:02:58.9]} 12. Qd2 {[%clk 0:02:58.9]} 12... b5
{[%clk 0:02:57.3]} 13. Bh6 {[%clk 0:02:42.9]} 13... Bb7 {[%clk 0:02:53.6]} 14.
Rad1 {[%clk 0:02:29.7]} 14... Qc7 {[%clk 0:02:52.3]} 15. Bxg7 {[%clk 0:02:28.7]}
15... Kxg7 {[%clk 0:02:52.4]} 16. Nd5 {[%clk 0:02:01.9]} 16... Bxd5 {[%clk
0:02:27.5]} 17. exd5 {[%clk 0:01:35.4]} 17... Rac8 {[%clk 0:02:18.9]} 18. Qg5
{[%clk 0:01:25.5]} 18... Kh8 {[%clk 0:02:05]} 19. c3 {[%clk 0:01:15.1]} 19...
Ng8 {[%clk 0:01:56.5]} 20. h4 {[%clk 0:01:00]} 20... Nc4 {[%clk 0:01:39.8]} 21.
Bxc4 {[%clk 0:00:57.5]} 21... Qxc4 {[%clk 0:01:38.9]} 22. Nc6 {[%clk 0:00:46.5]}
22... e5 {[%clk 0:01:06.2]} 23. h5 {[%clk 0:00:22.8]} 23... Kg7 {[%clk
0:01:00.5]} 24. Re3 {[%clk 0:00:21.9]} 24... Qf4 {[%clk 0:00:53.4]} 25. Qxf4
{[%clk 0:00:16.3]} 25... exf4 {[%clk 0:00:54.3]} 26. Ree1 {[%clk 0:00:11.8]}
26... gxh5 {[%clk 0:00:46.5]} 27. Kf1 {[%clk 0:00:10]} 27... Rxe1+ {[%clk
0:00:18.7]} 28. Rxe1 {[%clk 0:00:10]} 28... Nf6 {[%clk 0:00:19.1]} 29. Ne7
{[%clk 0:00:08.3]} 29... Rc5 {[%clk 0:00:19.2]} 30. Nf5+ {[%clk 0:00:08.2]}
30... Kg6 {[%clk 0:00:19.1]} 31. Ne7+ {[%clk 0:00:04.9]} 31... Kg5 {[%clk
0:00:17.7]} 32. f3 {[%clk 0:00:04.4]} 32... Nxd5 {[%clk 0:00:15.7]} 33. Ng8
{[%clk 0:00:01.8]} 33... Ne3+ {[%clk 0:00:14.7]} 34. Kf2 {[%clk 0:00:02.1]}
34... Rd5 {[%clk 0:00:14.8]} 35. Re2 {[%clk 0:00:02.8]} 35... Rd1 {[%clk
0:00:14.8]} 36. g3 {[%clk 0:00:02.3]} 36... Rf1# {[%clk 0:00:15.1]} 0-1

[Event "Early-Titled-Tuesday-Blitz-November-28-2023"]
[Site "Chess.com"]
[Date "2023.11.28"]
[Round "10"]
[White "Aguiar94"]
[Black "ilushka"]
[Result "1-0"]
[WhiteElo "2608"]
[BlackElo "2407"]
[TimeControl "180+1"]
[EndTime "10:01:56 PST"]
[Termination "Aguiar94 won on time"]

1. e4 {[%clk 0:03:00.4]} 1... e5 {[%clk 0:03:00.5]} 2. Nf3 {[%clk 0:03:00.1]}
2... Nc6 {[%clk 0:03:00.7]} 3. Nc3 {[%clk 0:03:00.5]} 3... Nf6 {[%clk
0:03:00.8]} 4. Bb5 {[%clk 0:03:00.8]} 4... d6 {[%clk 0:02:53.5]} 5. d4 {[%clk
0:03:00]} 5... exd4 {[%clk 0:02:53.6]} 6. Nxd4 {[%clk 0:03:00.5]} 6... Bd7
{[%clk 0:02:54.2]} 7. O-O {[%clk 0:02:59.6]} 7... Be7 {[%clk 0:02:52.5]} 8. Bxc6
{[%clk 0:02:57.3]} 8... bxc6 {[%clk 0:02:52]} 9. Bf4 {[%clk 0:02:58.2]} 9... O-O
{[%clk 0:02:45.3]} 10. e5 {[%clk 0:02:58.2]} 10... dxe5 {[%clk 0:02:44]} 11.
Bxe5 {[%clk 0:02:59.1]} 11... Nd5 {[%clk 0:02:43.1]} 12. Nxd5 {[%clk 0:02:40.4]}
12... cxd5 {[%clk 0:02:36.8]} 13. Nb3 {[%clk 0:02:39.1]} 13... Be6 {[%clk
0:02:29.1]} 14. Qd4 {[%clk 0:02:36.9]} 14... f6 {[%clk 0:02:03.1]} 15. Bg3
{[%clk 0:02:34]} 15... Re8 {[%clk 0:01:56.6]} 16. Rfe1 {[%clk 0:02:32.4]} 16...
Bf7 {[%clk 0:01:56.1]} 17. Red1 {[%clk 0:02:21.2]} 17... Qc8 {[%clk 0:01:41.7]}
18. Nc5 {[%clk 0:02:18]} 18... Bd6 {[%clk 0:01:34.5]} 19. b3 {[%clk 0:02:15.8]}
19... Qf5 {[%clk 0:01:31.2]} 20. Rac1 {[%clk 0:02:11.4]} 20... Bxg3 {[%clk
0:01:18.3]} 21. hxg3 {[%clk 0:02:11.1]} 21... Re2 {[%clk 0:01:18.8]} 22. Qf4
{[%clk 0:01:58.3]} 22... Qxf4 {[%clk 0:01:13.3]} 23. gxf4 {[%clk 0:01:59.2]}
23... Rae8 {[%clk 0:01:03.8]} 24. a4 {[%clk 0:01:55.5]} 24... c6 {[%clk
0:01:02]} 25. g3 {[%clk 0:01:29.3]} 25... Bh5 {[%clk 0:00:54.8]} 26. Kg2 {[%clk
0:01:27.9]} 26... R8e3 {[%clk 0:00:37.4]} 27. Rd3 {[%clk 0:01:20.1]} 27... Bf3+
{[%clk 0:00:37.1]} 28. Kf1 {[%clk 0:01:18.1]} 28... Rxd3 {[%clk 0:00:20.1]} 29.
cxd3 {[%clk 0:01:19]} 29... Rb2 {[%clk 0:00:16.4]} 30. Re1 {[%clk 0:01:17.7]}
30... Kf7 {[%clk 0:00:11.7]} 31. Kg1 {[%clk 0:01:05.8]} 31... Rc2 {[%clk
0:00:09.6]} 32. d4 {[%clk 0:01:03.8]} 32... h5 {[%clk 0:00:07.6]} 33. f5 {[%clk
0:01:03.3]} 33... Bg4 {[%clk 0:00:05.5]} 34. Re6 {[%clk 0:00:47.8]} 34... Bf3
{[%clk 0:00:02.5]} 35. Re1 {[%clk 0:00:47.8]} 35... Bg4 {[%clk 0:00:01.7]} 36.
Kg2 {[%clk 0:00:41.4]} 36... Bxf5 {[%clk 0:00:01.6]} 37. Kf3 {[%clk 0:00:41.9]}
37... g5 {[%clk 0:00:01.6]} 38. Rf1 {[%clk 0:00:35.6]} 38... h4 {[%clk
0:00:01.3]} 39. gxh4 {[%clk 0:00:35.4]} 39... gxh4 {[%clk 0:00:01.8]} 40. Kf4
{[%clk 0:00:35.5]} 1-0